{"text_format":"1","workbook":"xlsx","n_sheets":5,"sheets":["Anleitung","Exp.Rng Abschlussprüfng EFZ","Exp.Rng Teilprüfung EFZ","Exp.Rng Abschlussprüfng EBA","Lehrperson"],"not_rendered":{"charts":0,"images":1,"macros":1,"external_links":0,"defined_names":1,"comments":0,"pivot_tables":0},"unopened":[],"bounds":{"document_bytes":16777216,"sheet_cells":100000,"rows_first":2000,"rows_last":500,"rows_between":2000,"halvings":0,"cell_chars":16384,"cell_head_chars":4096},"cells_cut":0,"cells_raw":0,"read":"whole","date_system":"1900"}

{"sheet":"Anleitung","index":0,"n_rows":39,"n_cols":5,"rows_kept":39,"cut":false,"hidden":false,"merged":[[31,0,31,1],[37,1,37,2],[38,1,38,2],[33,1,33,4],[34,1,34,4],[35,1,35,2],[36,1,36,2],[0,2,0,4],[28,0,28,4],[30,2,30,4],[31,2,31,4],[32,0,32,4],[3,0,3,1],[23,0,23,1],[17,0,17,1],[29,2,29,4],[3,2,3,4],[4,2,4,4],[5,2,5,4],[6,2,6,4],[7,0,7,4],[8,0,8,1],[21,2,22,4]]}
[null,null,"Anleitung und Ansätze zur \nExperten-Rechnung"]
[]
[]
["Entschädigung an Mitglieder der Prüfungskommission sowie Expertinnen und Experten",null,"Expertinnen und Experten bitten wir,  für jeden Beruf, jede Prüfungsart (Qualifikationsverfahren EFZ, EBA, Teilprüfung) ein separates Abrechnungsformular zu verwenden.\n\nLehrpersonen bitte zuerst Formular \n\n\n                                                                     ausfüllen.                                                        "]
[null,null,"(Lehrabschlussprüfung, Teilprüfung, Zwischenprüfung, "]
[null,null,"Anlehrüberprüfung) ein separates Abrechnungsformular "]
[null,null,"zu verwenden."]
["1.  Ausfüllen der Formulare"]
["Formular nach Prüfungsart auswählen."]
[]
[]
[]
[]
[]
["2. Entschädigung"]
["Experten/innen",null,"Pro Stunde  ","CHF",40]
[]
["Chefexperten/innen und",null,"Pro Stunde  ","CHF",44]
["Mitglieder Prüfungskommission"]
["3. Einsatzzeit"]
["Maximal anrechenbare Einsatzzeit pro Tag",null,null,null,"8 Std."]
["4. Fahrspesen",null,"Bahnbillett 1. Klasse oder die entsprechenden Billettkosten von anderen öffentlichen Verkehrseinrichtungen oder \nKm-Entschädigung  (PW) von CHF –.70/km."]
[]
["5. Verpflegung + Übernachtung",null,"für Mittag- oder Nachtessen","CHF",25]
[null,null,"für Mittag- und Nachtessen","CHF",50]
[null,null,"nur Morgenessen","CHF",10]
[null,null,"für Übernachtung mit Morgenessen","CHF",100]
[]
["Anspruch auf diese Entschädigung besteht:"]
[" - für das Mittagessen",null,"wenn die Abreise vor 12.00 Uhr und die Rückkehr \nnach 13.00 Uhr erfolgt."]
[" - für das Nachtessen",null,"wenn die Abreise vor 17.30 Uhr und die Rückkehr \nnach 20.00 Uhr erfolgt."]
[" - für das Morgenessen",null,"wenn die Abreise vor 06.30 Uhr und die Rückkehr \nnach 10.00 Uhr erfolgt."]
["6.  Einreichung Abrechnung "]
["Expertinnen und Experten:","Bitte innert 2 Wochen nach Beendigung des Experteneinsatzes das Formular vollständig ausfüllen  und unterschreiben. Anschliessend ist das Originalformular zur Prüfung und Unterschrift an die Chefexpertin/den Chefexperten weiterzuleiten. \n"]
["Chefexpertinnen und Chefexperten:","Bitte die Abrechnungen prüfen und die vollständigen und unterschriebenen Originalformulare bis spätestens 31. August auf dem Postweg einreichen an:"]
[null,"Amt für Berufsbildung Graubünden"]
[null,"Grabenstrasse 1"]
[null,"7001 Chur"]
[null,"Für telefonische Auskünfte: 081 257 30 47"]

{"sheet":"Exp.Rng Abschlussprüfng EFZ","index":1,"n_rows":37,"n_cols":24,"rows_kept":37,"cut":false,"hidden":false,"merged":[[28,15,28,17],[30,22,30,23],[35,1,35,3],[35,5,35,7],[36,2,36,3],[22,0,22,1],[22,2,22,7],[22,11,22,14],[22,15,22,17],[23,0,23,1],[23,2,23,7],[23,11,23,14],[23,15,23,17],[27,0,27,1],[27,2,27,7],[27,11,27,14],[27,15,27,17],[24,0,24,1],[24,2,24,7],[24,11,24,14],[24,15,24,17],[25,0,25,1],[25,2,25,7],[25,11,25,14],[25,15,25,17],[26,0,26,1],[26,2,26,7],[26,11,26,14],[26,15,26,17],[17,18,17,19],[18,11,18,17],[18,18,18,19],[20,15,20,17],[21,0,21,1],[21,2,21,7],[21,11,21,14],[21,15,21,17],[20,0,20,1],[20,2,20,7],[20,11,20,14],[19,11,19,14],[19,15,19,17],[9,3,9,8],[9,13,9,17],[10,3,10,8],[13,12,13,17],[17,9,18,10],[17,11,17,17],[10,19,10,23],[11,3,11,8],[11,12,11,17],[12,3,12,8],[12,12,12,17],[12,19,12,23],[8,3,8,8],[8,13,8,17],[8,19,8,23],[0,22,0,23],[1,10,1,17],[2,10,2,17],[2,22,2,23],[4,3,4,8],[5,3,5,8],[5,19,5,23],[6,3,6,8],[6,13,6,17],[6,19,6,23],[7,3,7,8],[7,19,7,23]]}
[null,null,null,null,null,null,null,null,null,null,null,"Experten-Rechnung ",null,null,null,null,null,null,null,null,"Prüfungsjahr",null,2022]
[null,null,null,null,null,null,null,null,null,null,"(Bitte Formular mit Unterschrift des/der Chefexperten/in"]
[null,null,null,null,null,null,null,null,null,null,"dem Amt für Berufsbildung retournieren)"]
[]
["Name",null,null,null,null,null,null,null,null,null,"Zahlungsverbindung",null,null,null,null,null,null,null,null,"Einsatz im Beruf:"]
["Vorname",null,null,null,null,null,null,null,null,null,null,null,null,"Konto-InhaberIn",null,null,null,null,null,"(pro Beruf je ein separates Formular ausfüllen)"]
["Strasse"]
["Wohnort",null,null,null,null,null,null,null,null,null,null,null,null,"Name, Adresse"]
["Beruf",null,null,null,null,null,null,null,null,null,null,null,null,null,null,null,null,null,null,"(Berufsbezeichnung gemäss BIVO)"]
["Geburtsdatum"]
["Versicherungs-Nr.",null,null,null,null,null,null,null,null,null,"Post-/Bankkonto"]
["Tel. (Bürozeiten)",null,null,null,null,null,null,null,null,null,"Post/Bank"]
["E-Mail Adresse",null,null,null,null,null,null,null,null,null,"PLZ Ort",null,null,null,null,null,null,null,null,"(Bitte zuerst das Formular \"Lehrperson\" ausfüllen)"]
["Quellensteuerpflichtig",null,null,null,null,null,null,null,null,null,"IBAN"]
[]
[]
[null,null,null,null,null,null,null,null,null,null,null,"ENTSCHÄDIGUNG",null,null,null,null,null,null,"SPESEN"]
["Datum",null,"Ort, Anlass (z.B. Chur, Praktische Arbeiten)",null,null,null,null,null,"Kandidat/in\nNr.","Zeitaufwand",null,"Prüfungsabnahmen, Prüfungsaufsicht, IPA-Besuche und -Präsentationen, Validierung, angeordnete Vorbereitungsstunden, Sitzungen, Aufgabenerarbeitung, Korrekturen, etc. \n",null,null,null,null,null,null,"Fahrspesen\n(Bahnbillett oder \nKm-Entschädigung)\n ",null,"Verpfle-\ngung\n","Übernach-\ntung mit \nFrühstück\n","Material-/\nLokal- kosten\n","Kopien, Porti, Telefone usw.\n "]
[null,null,null,null,null,null,null,null,null,null,null,"1)",null,null,null,null,null,null,"1)",null,"1)","1)","2)","2)"]
[null,null,null,null,null,null,null,null,null,"von","bis","Anzahl Stunden\n(max. 8 Std./Tag)",null,null,null,"Total CHF",null,null,"gefah-\nrene km","CHF","CHF","CHF","CHF","CHF"]
[null,null,null,null,null,null,null,null,null,"00:00:00","00:00:00"]
[null,null,null,null,null,null,null,null,null,"00:00:00","00:00:00"]
[null,null,null,null,null,null,null,null,null,"00:00:00","00:00:00"]
[null,null,null,null,null,null,null,null,null,"00:00:00","00:00:00"]
[null,null,null,null,null,null,null,null,null,"00:00:00","00:00:00"]
[null,null,null,null,null,null,null,null,null,"00:00:00","00:00:00"]
[null,null,null,null,null,null,null,null,null,"00:00:00","00:00:00"]
[null,null,null,null,null,null,null,null,null,"00:00:00","00:00:00"]
[null,null,null,null,null,null,null,null,null,null,null,"Total",null,null,null,{"$f":"SUM(P21:R28)","v":0},null,null,null,{"$f":"SUM(T21:T28)","v":0},{"$f":"SUM(U21:U28)","v":0},{"$f":"SUM(V21:V28)","v":0},{"$f":"SUM(W21:W28)","v":0},{"$f":"SUM(X21:X28)","v":0}]
["1) Ansätze siehe Beiblatt \"Anleitung und Ansätze zur Experten-Rechnung\""]
["2) Belege und/oder Aufstellung beilegen",null,null,null,null,null,null,null,null,null,null,null,null,null,null,null,null,null,null,null,"GESAMTTOTAL",null,{"$f":"SUM(P29:X29)","v":0}]
[]
[]
["Der/Die Prüfungsexperte/in",null,null,null,"Der/Die Chefexperte/in (sachlich und",null,null,null,"Prüfungsleitung",null,null,null,null,"Rechnungsprüfung",null,null,null,null,null,"Zahlungserfassung AfB"]
[null,null,null,null,"rechnerisch geprüft und für richtig befunden)"]
["Datum:",null,null,null,"Datum:",null,null,null,"Datum:",null,null,null,null,"Datum:",null,null,null,null,null,"Total TG ",null,{"$f":"SUM(P29)","v":0},"Visum"]
["Unterschrift:",null,null,null,"Unterschrift:",null,null,null,"Unterschrift:",null,null,null,null,"Unterschrift:",null,null,null,null,null,"Total SP ",null,{"$f":"SUM(T29:X29)","v":0},"Datum"]

{"sheet":"Exp.Rng Teilprüfung EFZ","index":2,"n_rows":37,"n_cols":24,"rows_kept":37,"cut":false,"hidden":false,"merged":[[28,15,28,17],[30,22,30,23],[35,1,35,3],[35,5,35,7],[36,2,36,3],[22,0,22,1],[22,2,22,7],[22,11,22,14],[22,15,22,17],[23,0,23,1],[23,2,23,7],[23,11,23,14],[23,15,23,17],[27,0,27,1],[27,2,27,7],[27,11,27,14],[27,15,27,17],[24,0,24,1],[24,2,24,7],[24,11,24,14],[24,15,24,17],[25,0,25,1],[25,2,25,7],[25,11,25,14],[25,15,25,17],[26,0,26,1],[26,2,26,7],[26,11,26,14],[26,15,26,17],[17,18,17,19],[18,11,18,17],[18,18,18,19],[20,15,20,17],[21,0,21,1],[21,2,21,7],[21,11,21,14],[21,15,21,17],[20,0,20,1],[20,2,20,7],[20,11,20,14],[19,11,19,14],[19,15,19,17],[9,3,9,8],[9,13,9,17],[10,3,10,8],[13,12,13,17],[17,9,18,10],[17,11,17,17],[10,19,10,23],[11,3,11,8],[11,12,11,17],[12,3,12,8],[12,12,12,17],[12,19,12,23],[8,3,8,8],[8,13,8,17],[8,19,8,23],[0,22,0,23],[1,10,1,17],[2,10,2,17],[2,22,2,23],[4,3,4,8],[5,3,5,8],[5,19,5,23],[6,3,6,8],[6,13,6,17],[6,19,6,23],[7,3,7,8],[7,19,7,23]]}
[null,null,null,null,null,null,null,null,null,null,null,"Experten-Rechnung ",null,null,null,null,null,null,null,null,"Prüfungsjahr",null,2022]
[null,null,null,null,null,null,null,null,null,null,"(Bitte Formular mit Unterschrift des/der Chefexperten/in"]
[null,null,null,null,null,null,null,null,null,null,"dem Amt für Berufsbildung retournieren)"]
[]
["Name",null,null,null,null,null,null,null,null,null,"Zahlungsverbindung",null,null,null,null,null,null,null,null,"Einsatz im Beruf:"]
["Vorname",null,null,null,null,null,null,null,null,null,null,null,null,"Konto-InhaberIn",null,null,null,null,null,"(pro Beruf je ein separates Formular ausfüllen)"]
["Strasse"]
["Wohnort",null,null,null,null,null,null,null,null,null,null,null,null,"Name, Adresse"]
["Beruf",null,null,null,null,null,null,null,null,null,null,null,null,null,null,null,null,null,null,"(Berufsbezeichnung gemäss BIVO)"]
["Geburtsdatum"]
["Versicherungs-Nr.",null,null,null,null,null,null,null,null,null,"Post-/Bankkonto"]
["Tel. (Bürozeiten)",null,null,null,null,null,null,null,null,null,"Post/Bank"]
["E-Mail Adresse",null,null,null,null,null,null,null,null,null,"PLZ Ort",null,null,null,null,null,null,null,null,"(Bitte zuerst das Formular \"Lehrperson\" ausfüllen)"]
["Quellensteuerpflichtig",null,null,null,null,null,null,null,null,null,"IBAN"]
[]
[]
[null,null,null,null,null,null,null,null,null,null,null,"ENTSCHÄDIGUNG",null,null,null,null,null,null,"SPESEN"]
["Datum",null,"Ort, Anlass (z.B. Chur, Praktische Arbeiten)",null,null,null,null,null,"Kandidat/in\nNr.","Zeitaufwand",null,"Prüfungsabnahmen, Prüfungsaufsicht, IPA-Besuche und -Präsentationen, Validierung, angeordnete Vorbereitungsstunden, Sitzungen, Aufgabenerarbeitung, Korrekturen, etc. \n",null,null,null,null,null,null,"Fahrspesen\n(Bahnbillett oder \nKm-Entschädigung)\n ",null,"Verpfle-\ngung\n","Übernach-\ntung mit \nFrühstück\n","Material-/\nLokal- kosten\n","Kopien, Porti, Telefone usw.\n "]
[null,null,null,null,null,null,null,null,null,null,null,"1)",null,null,null,null,null,null,"1)",null,"1)","1)","2)","2)"]
[null,null,null,null,null,null,null,null,null,"von","bis","Anzahl Stunden\n(max. 8 Std./Tag)",null,null,null,"Total CHF",null,null,"gefah-\nrene km","CHF","CHF","CHF","CHF","CHF"]
[null,null,null,null,null,null,null,null,null,"00:00:00","00:00:00"]
[null,null,null,null,null,null,null,null,null,"00:00:00","00:00:00"]
[null,null,null,null,null,null,null,null,null,"00:00:00","00:00:00"]
[null,null,null,null,null,null,null,null,null,"00:00:00","00:00:00"]
[null,null,null,null,null,null,null,null,null,"00:00:00","00:00:00"]
[null,null,null,null,null,null,null,null,null,"00:00:00","00:00:00"]
[null,null,null,null,null,null,null,null,null,"00:00:00","00:00:00"]
[null,null,null,null,null,null,null,null,null,"00:00:00","00:00:00"]
[null,null,null,null,null,null,null,null,null,null,null,"Total",null,null,null,{"$f":"SUM(P21:R28)","v":0},null,null,null,{"$f":"SUM(T21:T28)","v":0},{"$f":"SUM(U21:U28)","v":0},{"$f":"SUM(V21:V28)","v":0},{"$f":"SUM(W21:W28)","v":0},{"$f":"SUM(X21:X28)","v":0}]
["1) Ansätze siehe Beiblatt \"Anleitung und Ansätze zur Experten-Rechnung\""]
["2) Belege und/oder Aufstellung beilegen",null,null,null,null,null,null,null,null,null,null,null,null,null,null,null,null,null,null,null,"GESAMTTOTAL",null,{"$f":"SUM(P29:X29)","v":0}]
[]
[]
["Der/Die Prüfungsexperte/in",null,null,null,"Der/Die Chefexperte/in (sachlich und",null,null,null,"Prüfungsleitung",null,null,null,null,"Rechnungsprüfung",null,null,null,null,null,"Zahlungserfassung AfB"]
[null,null,null,null,"rechnerisch geprüft und für richtig befunden)"]
["Datum:",null,null,null,"Datum:",null,null,null,"Datum:",null,null,null,null,"Datum:",null,null,null,null,null,"Total TG ",null,{"$f":"SUM(P29)","v":0},"Visum"]
["Unterschrift:",null,null,null,"Unterschrift:",null,null,null,"Unterschrift:",null,null,null,null,"Unterschrift:",null,null,null,null,null,"Total SP ",null,{"$f":"SUM(T29:X29)","v":0},"Datum"]

{"sheet":"Exp.Rng Abschlussprüfng EBA","index":3,"n_rows":37,"n_cols":24,"rows_kept":37,"cut":false,"hidden":false,"merged":[[36,2,36,3],[8,19,8,23],[2,10,2,17],[1,10,1,17],[19,11,19,14],[20,11,20,14],[10,19,10,23],[23,15,23,17],[20,15,20,17],[21,11,21,14],[22,11,22,14],[23,11,23,14],[4,3,4,8],[6,3,6,8],[7,3,7,8],[8,3,8,8],[5,3,5,8],[21,15,21,17],[9,3,9,8],[22,15,22,17],[19,15,19,17],[0,22,0,23],[2,22,2,23],[7,19,7,23],[5,19,5,23],[6,19,6,23],[17,18,17,19],[18,18,18,19],[6,13,6,17],[8,13,8,17],[9,13,9,17],[12,19,12,23],[20,0,20,1],[20,2,20,7],[17,11,17,17],[18,11,18,17],[10,3,10,8],[11,3,11,8],[17,9,18,10],[12,3,12,8],[11,12,11,17],[12,12,12,17],[13,12,13,17],[30,22,30,23],[24,2,24,7],[25,2,25,7],[27,15,27,17],[26,2,26,7],[24,15,24,17],[25,15,25,17],[26,15,26,17],[28,15,28,17],[25,11,25,14],[26,11,26,14],[27,11,27,14],[24,11,24,14],[23,0,23,1],[23,2,23,7],[21,0,21,1],[35,1,35,3],[21,2,21,7],[27,2,27,7],[22,0,22,1],[22,2,22,7],[27,0,27,1],[26,0,26,1],[25,0,25,1],[24,0,24,1],[35,5,35,7]]}
[null,null,null,null,null,null,null,null,null,null,null,"Experten-Rechnung ",null,null,null,null,null,null,null,null,"Prüfungsjahr",null,2022]
[null,null,null,null,null,null,null,null,null,null,"(Bitte Formular mit Unterschrift des/der Chefexperten/in"]
[null,null,null,null,null,null,null,null,null,null,"dem Amt für Berufsbildung retournieren)"]
[]
["Name",null,null,null,null,null,null,null,null,null,"Zahlungsverbindung",null,null,null,null,null,null,null,null,"Einsatz im Beruf:"]
["Vorname",null,null,null,null,null,null,null,null,null,null,null,null,"Konto-InhaberIn",null,null,null,null,null,"(pro Beruf je ein separates Formular ausfüllen)"]
["Strasse"]
["Wohnort",null,null,null,null,null,null,null,null,null,null,null,null,"Name, Adresse"]
["Beruf",null,null,null,null,null,null,null,null,null,null,null,null,null,null,null,null,null,null,"(Berufsbezeichnung gemäss BIVO)"]
["Geburtsdatum"]
["Versicherungs-Nr.",null,null,null,null,null,null,null,null,null,"Post-/Bankkonto"]
["Tel. (Bürozeiten)",null,null,null,null,null,null,null,null,null,"Post/Bank"]
["E-Mail Adresse",null,null,null,null,null,null,null,null,null,"PLZ Ort",null,null,null,null,null,null,null,null,"(Bitte zuerst das Formular \"Lehrperson\" ausfüllen)"]
["Quellensteuerpflichtig",null,null,null,null,null,null,null,null,null,"IBAN"]
[]
[]
[null,null,null,null,null,null,null,null,null,null,null,"ENTSCHÄDIGUNG",null,null,null,null,null,null,"SPESEN"]
["Datum",null,"Ort, Anlass (z.B. Chur, Praktische Arbeiten)",null,null,null,null,null,"Kandidat/in\nNr.","Zeitaufwand",null,"Prüfungsabnahmen, Prüfungsaufsicht, IPA-Besuche und -Präsentationen, Validierung, angeordnete Vorbereitungsstunden, Sitzungen, Aufgabenerarbeitung, Korrekturen, etc. \n",null,null,null,null,null,null,"Fahrspesen\n(Bahnbillett oder \nKm-Entschädigung)\n ",null,"Verpfle-\ngung\n","Übernach-\ntung mit \nFrühstück\n","Material-/\nLokal- kosten\n","Kopien, Porti, Telefone usw.\n "]
[null,null,null,null,null,null,null,null,null,null,null,"1)",null,null,null,null,null,null,"1)",null,"1)","1)","2)","2)"]
[null,null,null,null,null,null,null,null,null,"von","bis","Anzahl Stunden\n(max. 8 Std./Tag)",null,null,null,"Total CHF",null,null,"gefah-\nrene km","CHF","CHF","CHF","CHF","CHF"]
[null,null,null,null,null,null,null,null,null,"00:00:00","00:00:00"]
[null,null,null,null,null,null,null,null,null,"00:00:00","00:00:00"]
[null,null,null,null,null,null,null,null,null,"00:00:00","00:00:00"]
[null,null,null,null,null,null,null,null,null,"00:00:00","00:00:00"]
[null,null,null,null,null,null,null,null,null,"00:00:00","00:00:00"]
[null,null,null,null,null,null,null,null,null,"00:00:00","00:00:00"]
[null,null,null,null,null,null,null,null,null,"00:00:00","00:00:00"]
[null,null,null,null,null,null,null,null,null,"00:00:00","00:00:00"]
[null,null,null,null,null,null,null,null,null,null,null,"Total",null,null,null,{"$f":"SUM(P21:R28)","v":0},null,null,null,{"$f":"SUM(T21:T28)","v":0},{"$f":"SUM(U21:U28)","v":0},{"$f":"SUM(V21:V28)","v":0},{"$f":"SUM(W21:W28)","v":0},{"$f":"SUM(X21:X28)","v":0}]
["1) Ansätze siehe Beiblatt \"Anleitung und Ansätze zur Experten-Rechnung\""]
["2) Belege und/oder Aufstellung beilegen",null,null,null,null,null,null,null,null,null,null,null,null,null,null,null,null,null,null,null,"GESAMTTOTAL",null,{"$f":"SUM(P29:X29)","v":0}]
[]
[]
["Der/Die Prüfungsexperte/in",null,null,null,"Der/Die Chefexperte/in (sachlich und",null,null,null,"Prüfungsleitung",null,null,null,null,"Rechnungsprüfung",null,null,null,null,null,"Zahlungserfassung AfB"]
[null,null,null,null,"rechnerisch geprüft und für richtig befunden)"]
["Datum:",null,null,null,"Datum:",null,null,null,"Datum:",null,null,null,null,"Datum:",null,null,null,null,null,"Total TG ",null,{"$f":"SUM(P29)","v":0},"Visum"]
["Unterschrift:",null,null,null,"Unterschrift:",null,null,null,"Unterschrift:",null,null,null,null,"Unterschrift:",null,null,null,null,null,"Total SP ",null,{"$f":"SUM(T29:X29)","v":0},"Datum"]

{"sheet":"Lehrperson","index":4,"n_rows":40,"n_cols":7,"rows_kept":40,"cut":false,"hidden":false,"merged":[[18,4,18,5],[19,4,19,5],[18,0,18,2],[33,4,33,5],[24,1,24,2],[25,1,25,2],[26,1,26,2],[27,1,27,2],[28,1,28,2],[29,1,29,2],[30,1,30,2],[31,1,31,2],[32,1,32,2],[4,2,4,3],[5,2,5,3],[6,2,6,3],[17,0,17,2],[13,0,13,2],[14,0,14,2],[8,0,8,7],[11,0,11,3],[15,0,15,2],[16,0,16,2]]}
[null,null,null,null,"Entschädigung "]
[null,null,null,null,"an Lehrpersonen"]
[null,null,null,null,"von Berufsfachschulen"]
[]
["Name/Vorname  "]
["Schule/Abteilung   "]
[]
[]
["Lehrpersonen von Berufsfachschulen haben Anspruch auf Entschädigung für die Mitwirkung an den Prüfungen, soweit der Zeitaufwand nicht mit ausfallendem Unterricht kompensiert werden kann. \nFür die Stunden-Umrechnung wird von einem durchschnittlichen Faktor von 1.6 ausgegangen."]
[]
["Normalstundenplan"]
["Bitte die Lektionen eintragen, welche während der Durchführung von Qualifikationsverfahren ausgefallen sind:"]
["Datum\nvon - bis",null,null,"Ausgefallene\nLektionen"]
[]
[]
[]
[]
[]
[null,null,null,null,"Faktor",null,"Stunden"]
["Total ausgefallene Lektionen",null,null,{"$f":"SUM(D14:D19)","v":0},1.6,null,{"$f":"SUM(D20*E20)","v":0}]
[null,null,null,null,null,null,"Übertrag in Feld A"]
["Einsatz-Qualifikationsverfahren (QV)"]
[]
["Datum","Beruf",null,"Angeordnete\nVorbereitung\nStd.","Prüfungs-\nabnahme\nStd.","Korrekturen\n\nStd.","Total\n\nStd."]
[null,null,null,null,null,null,{"$f":"SUM(D25:F25)","v":0}]
[null,null,null,null,null,null,{"$f":"SUM(D26:F26)","v":0}]
[null,null,null,null,null,null,0]
[null,null,null,null,null,null,0]
[null,null,null,null,null,null,0]
[null,null,null,null,null,null,0]
[null,null,null,null,null,null,0]
[null,null,null,null,null,null,0]
[null,null,null,null,null,null,0]
["Total QV-Einsatz",null,null,null,null,null,{"$f":"SUM(G25:G33)","v":0}]
[]
["Abzüglich Hertrag Normalstundenplan",null,null,null,null,"Feld A  ",{"$f":"SUM(G20)","v":0}]
[]
["Differenz positiv (= Auszahlung)  /  Differenz negativ (= keine Auszahlung)",null,null,null,null,null,{"$f":"G34-G36","v":0}]
[]
["Positives Ergebnis bitte in Experten-Rechnung übertragen",null,null,null,null,"auf Stunde gerundet",{"$f":"IF(G38<=0,0,(ROUND(G38+0.4,0)/1))","v":0}]